bitfinex-derivatives/quotes_ETHF0:USTF0_20260226
["timestamp","ask_amount","ask_price","bid_price","bid_amount"]
[1772136312799,0.99928748,2039.0,2037.6,1.00497154]
[1772136313496,0.99515277,2038.8,2037.6,1.00497154]
[1772136314698,1.61344039,2038.8,2037.6,1.00497154]
[1772136314998,0.99515277,2038.7,2037.6,1.00497154]
[1772136320305,0.00413471,2039.0,2038.0,1.00497154]
[1772136320499,0.99928748,2039.0,2038.0,1.00497154]
[1772136321404,0.99928748,2039.0,2038.2,1.00497154]
[1772136321704,0.99928748,2039.0,2038.3,1.25026154]
[1772136322104,0.99928748,2039.0,2038.1,1.00497154]
[1772136323303,0.99928748,2039.0,2038.3,1.00497154]
[1772136324606,0.00413471,2039.0,2038.3,1.00497154]
[1772136324798,0.99515277,2039.5,2038.5,1.00497154]
[1772136325906,1.00137268,2039.5,2038.5,1.00497154]
[1772136334510,1.00137268,2039.5,2037.9,1.61344039]
[1772136334811,0.99515277,2039.0,2037.7,0.99567347]
[1772136335613,0.99515277,2039.0,2037.9,0.99635437]
[1772136336214,0.99515277,2039.0,2038.1,0.94064865]
[1772136339713,0.99515277,2039.0,2038.3,0.94064865]
[1772136343914,0.99515277,2039.0,2038.2,0.2453]
[1772136344215,0.99515277,2039.0,2038.2,1.23524482]
[1772136347913,0.95601711,2039.2,2038.2,1.23524482]
[1772136351917,0.95601711,2039.2,2038.7,0.98247855]
[1772136353118,0.95601711,2039.2,2038.2,0.98961028]
[1772136353617,0.95601711,2039.2,2038.6,0.99015688]
[1772136361830,0.00621991,2039.5,2038.8,1.00063715]
[1772136362030,0.96223702,2039.5,2038.8,1.00063715]
[1772136362325,0.95601711,2039.7,2039.0,1.00063715]
[1772136363124,0.95601711,2039.7,2038.8,1.00063715]
[1772136363330,0.96111904,2039.7,2038.8,1.00432851]
[1772136364632,0.96111904,2039.7,2038.8,1.24954851]
[1772136366836,0.96111904,2039.7,2038.8,0.00369136]
[1772136367135,0.95601711,2039.5,2038.4,1.24591715]
[1772136367430,0.95601711,2039.5,2038.4,1.00063715]
[1772136367937,0.95601711,2039.5,2038.4,1.00576352]
[1772136368437,0.95601711,2039.5,2038.4,0.00512637]
[1772136368733,0.95601711,2039.3,2038.0,1.24595715]
[1772136368937,0.95601711,2039.1,2037.8,1.00063715]
[1772136369837,0.95601711,2039.1,2037.8,1.00472172]
[1772136370337,0.95601711,2039.1,2037.8,1.00117035]
[1772136371435,0.93720103,2038.9,2037.8,0.00408457]
[1772136371736,0.93720103,2038.9,2037.8,0.91960905]
[1772136372131,0.93720103,2038.9,2038.0,0.91552448]
[1772136372637,0.93720103,2038.9,2037.9,0.24534]
[1772136372840,0.93720103,2038.9,2037.9,1.16086448]
[1772136373338,0.93720103,2038.9,2038.0,0.91552448]
[1772136375537,0.93720103,2038.9,2037.8,0.00408457]
[1772136375742,0.93720103,2038.7,2037.8,0.00408457]
[1772136378441,0.93720103,2038.7,2037.8,0.91960905]
[1772136383043,0.93720103,2038.7,2037.8,0.00408457]
[1772136387449,1.18245103,2038.7,2037.8,0.00408457]
[1772136387654,0.93720103,2038.6,2037.8,0.00408457]
[1772136388053,0.93720103,2038.6,2037.8,0.91960905]
[1772136388654,0.93720103,2038.6,2037.8,0.00408457]
[1772136391354,0.93720103,2038.4,2037.4,0.91552448]
[1772136391854,0.93720103,2038.4,2037.2,0.91552448]
[1772136392056,0.93720103,2038.2,2037.0,1.16096448]
[1772136392255,0.94098751,2038.2,2037.0,1.16558424]
[1772136392656,0.94098751,2038.2,2037.1,0.91552448]
[1772136393160,0.93720103,2038.0,2037.0,0.00461976]
[1772136393457,0.93720103,2038.0,2037.0,0.92014424]
[1772136394356,0.93720103,2038.0,2037.0,0.00461976]
[1772136394658,0.93720103,2037.8,2036.3,0.91552448]
[1772136394857,0.93720103,2037.8,2036.0,6.534]
[1772136394858,0.93720103,2037.8,2036.5,0.91552448]
[1772136395152,0.93720103,2037.8,2036.7,0.91552448]
[1772136395556,0.93720103,2037.8,2036.7,0.92079515]
[1772136396452,0.99926413,2038.0,2037.2,0.24541]
[1772136396657,1.00305061,2038.2,2037.5,0.98048979]
[1772136399558,1.00305061,2038.2,2037.0,0.24545]
[1772136399853,0.98167271,2038.1,2036.8,1.01769735]
[1772136400157,0.98167271,2038.0,2036.8,1.26315735]
[1772136401958,0.98167271,2037.8,2036.8,1.26315735]
[1772136407765,0.98167271,2037.2,2035.7,1.01769735]
[1772136407959,0.98167271,2037.2,2036.3,1.01769735]
[1772136408767,0.98167271,2037.2,2036.3,1.02182803]
[1772136408963,0.98167271,2037.0,2036.3,0.00413068]
[1772136409265,5.69564354,2036.9,2035.7,1.26329735]
[1772136409467,0.98167271,2036.8,2035.9,1.01769735]
[1772136410066,0.98167271,2036.8,2036.0,1.02182803]
[1772136410262,0.98167271,2036.8,2036.0,1.01769735]
[1772136413269,0.98167271,2036.8,2036.0,1.02182803]
[1772136413467,0.98167271,2036.8,2036.0,1.01769735]
[1772136413769,0.98167271,2036.8,2036.2,1.01769735]
[1772136414069,0.98167271,2036.8,2036.0,1.01769735]
[1772136414270,0.98167271,2036.8,2036.2,1.01769735]
[1772136414770,0.98167271,2036.8,2036.2,1.02182803]
[1772136415870,0.98167271,2036.8,2036.2,1.01769735]
[1772136416169,0.98167271,2036.8,2036.0,1.01769735]
[1772136416472,0.98167271,2036.8,2036.0,1.02182803]
[1772136416673,0.98167271,2036.8,2036.0,1.01769735]
[1772136416868,0.98167271,2036.8,2035.9,0.0055462]
[1772136417071,0.98167271,2036.8,2035.9,1.02324355]
[1772136419676,0.98167271,2036.8,2036.1,0.00413068]
[1772136419975,0.98167271,2036.8,2036.1,1.01769735]
[1772136420176,0.98167271,2036.8,2036.2,0.00413068]
[1772136421275,0.98167271,2036.8,2035.9,0.0055462]
[1772136421276,0.98167271,2036.8,2035.9,1.02324355]
[1772136421879,0.98167271,2036.8,2035.9,1.02737423]
[1772136423378,0.98167271,2036.8,2034.9,6.36482007]
[1772136423379,0.98167271,2036.2,2035.0,1.01769735]
[1772136423579,0.98167271,2036.4,2035.5,1.01769735]
[1772136424280,0.98521954,2036.4,2035.5,1.02116143]
[1772136428271,0.98521954,2036.4,2035.7,1.01769735]
[1772136430179,0.00354683,2036.4,2035.9,1.00780149]
[1772136430379,0.98979589,2036.4,2035.9,1.00780149]
[1772136430583,0.98979589,2036.4,2035.6,1.00780149]
[1772136433181,0.98624906,2037.2,2036.0,1.00780149]
[1772136433384,0.98624906,2037.2,2036.2,1.00780149]
[1772136434185,0.98981788,2037.2,2036.2,1.00780149]
[1772136438186,0.98981788,2037.2,2035.7,1.00780149]
[1772136439390,0.98624906,2037.0,2035.7,1.00780149]
[1772136439780,0.98624906,2036.8,2035.7,1.00780149]
[1772136442090,0.98624906,2036.6,2035.6,1.00780149]
[1772136445088,0.98624906,2036.4,2035.5,0.00346408]
[1772136445289,0.98624906,2036.4,2035.5,1.01126557]
[1772136455099,0.98624906,2036.6,2035.7,1.00780149]
[1772136456800,0.98186942,2037.1,2035.9,0.94097672]
[1772136458199,0.98186942,2037.1,2036.1,0.94097672]
[1772136465606,0.24545,2037.0,2036.1,0.94097672]
[1772136465913,0.98306883,2036.9,2036.1,0.94097672]
[1772136466211,0.98306883,2036.9,2035.8,1.00520913]
[1772136471420,0.24547,2036.8,2035.8,1.00520913]
[1772136471619,0.98306883,2036.7,2035.8,1.00520913]
[1772136473121,0.98306883,2036.8,2035.8,1.25078913]
[1772136475822,0.98306883,2036.9,2035.8,1.25078913]
[1772136481527,1.22853883,2036.9,2035.8,1.00520913]
[1772136481721,0.00356882,2037.2,2035.5,0.00346408]
[1772136481722,0.98306883,2036.7,2035.7,1.00520913]
[1772136482026,0.98306883,2036.3,2035.5,1.00867321]
[1772136482518,0.98306883,2036.1,2035.0,1.00520913]
[1772136483522,0.98306883,2036.1,2035.0,1.01091331]
[1772136489830,0.95496386,2035.7,2035.0,0.00570418]
[1772136490029,0.95963177,2035.7,2034.5,0.9465802]
[1772136490225,0.95496386,2035.6,2034.5,0.9465802]
[1772136491029,0.95496386,2035.6,2034.5,0.95291701]
[1772136491931,0.95496386,2035.6,2034.7,0.9465802]
[1772136492329,0.00466791,2035.7,2034.9,0.9465802]
[1772136492932,0.95963177,2035.7,2034.9,0.9465802]
[1772136498932,0.95963177,2035.7,2034.6,0.9465802]
[1772136499137,0.95496386,2035.3,2034.2,0.9465802]
[1772136499536,6.09554644,2035.2,2034.3,0.9465802]
[1772136499840,0.95496386,2035.2,2034.3,0.9465802]
[1772136500140,0.95496386,2035.2,2034.3,0.95228446]
[1772136500646,0.95496386,2035.5,2034.5,0.9465802]
[1772136502140,0.95963177,2035.7,2034.7,0.9465802]
[1772136504243,1.00963177,2035.7,2034.7,0.9465802]
[1772136515544,0.05466791,2035.7,2034.9,0.9465802]
[1772136516046,1.05845473,2035.7,2034.9,0.9465802]
[1772136524148,0.24565,2035.4,2034.4,1.03912071]
[1772136524353,1.03950478,2035.3,2034.4,1.03912071]
[1772136527052,1.03950478,2035.3,2034.4,1.28488071]
[1772136529557,1.03950478,2035.3,2034.4,1.03912071]
[1772136531859,1.03950478,2035.6,2034.6,1.03912071]
[1772136543369,1.28514478,2035.4,2034.3,1.04482497]
[1772136543769,1.03950478,2035.2,2034.3,1.04482497]
[1772136547572,1.03950478,2035.0,2034.3,0.00570426]
[1772136547867,1.03950478,2034.8,2034.0,1.03912071]
[1772136548763,1.03950478,2034.8,2034.0,1.04345706]
[1772136557282,1.03950478,2034.8,2034.1,0.94774853]
[1772136557978,0.94814604,2034.5,2034.0,0.95208488]
[1772136558173,0.94814604,2034.9,2034.0,0.95208488]
[1772136558378,0.94814604,2035.1,2034.4,0.94774853]
[1772136558781,0.94814604,2034.9,2034.2,0.94774853]
[1772136559584,0.94814604,2034.7,2034.2,0.94774853]
[1772136561983,0.94814604,2035.1,2034.6,2.0301204]
[1772136562187,0.94814604,2035.4,2034.7,0.94774853]
[1772136564689,0.94814604,2035.4,2034.1,0.94774853]
[1772136564889,0.94814604,2035.2,2034.1,0.94774853]
[1772136569288,0.94814604,2035.2,2034.0,0.25014635]
[1772136569497,0.94814604,2035.0,2034.0,0.95208488]
[1772136569888,0.94814604,2034.8,2034.0,0.95208488]
[1772136570589,0.94814604,2034.6,2034.0,0.95208488]
[1772136571091,0.94814604,2034.7,2034.0,0.95208488]
[1772136585696,0.94814604,2034.7,2034.0,0.00433635]
[1772136586405,0.94814604,2034.7,2033.8,0.95534879]
[1772136587403,0.94814604,2034.7,2033.8,0.96070913]
[1772136593409,1.02346132,2034.6,2033.8,0.00536034]
[1772136593910,1.02346132,2034.6,2033.8,0.96070913]
[1772136598012,40.8,2035.0,2033.8,0.96070913]
[1772136598013,1.02346132,2034.4,2033.8,0.00536034]
[1772136598213,8.81046132,2034.4,2033.8,0.00536034]
[1772136598414,1.02346132,2034.3,2033.8,0.00536034]
[1772136600216,1.02346132,2034.3,2033.8,0.96070913]
[1772136601315,1.02346132,2034.3,2033.8,0.00536034]
[1772136601514,1.26924132,2034.3,2033.1,0.95534879]
[1772136602617,1.26924132,2034.3,2033.1,0.96135563]
[1772136602918,1.26926132,2034.1,2033.1,0.96135563]
[1772136603117,1.27405467,2034.1,2033.1,0.96135563]
[1772136610531,1.02825467,2034.1,2033.1,0.96135563]
[1772136612334,1.02825467,2034.1,2033.4,0.97303088]
[1772136615933,1.02825467,2034.1,2033.2,0.97303088]
[1772136616837,1.02825467,2034.1,2033.1,0.97903772]
[1772136617740,1.02825467,2034.1,2033.1,0.00600684]
[1772136618540,1.02825467,2034.1,2033.1,0.97903772]
[1772136621342,1.02825467,2034.1,2033.1,0.00600684]
[1772136621638,1.01375288,2033.9,2033.1,0.97903772]
[1772136622843,1.01375288,2033.7,2033.1,0.20143706]
[1772136623844,1.01375288,2033.7,2033.1,0.20699861]
[1772136627043,1.01375288,2033.7,2033.1,0.00556155]
[1772136628551,1.01375288,2034.0,2033.1,0.97859243]
[1772136630151,1.01854623,2034.1,2033.3,0.97303088]
[1772136632950,0.00479335,2034.1,2033.3,0.97303088]
[1772136633255,1.01375288,2034.6,2033.8,0.97303088]
[1772136633455,1.01375288,2034.8,2033.8,0.97303088]
[1772136633855,1.01375288,2034.8,2034.0,0.97303088]
[1772136634057,1.01375288,2034.9,2034.2,0.97303088]
[1772136634257,0.00627842,2034.9,2034.2,0.97303088]
[1772136634756,1.0200313,2034.9,2034.2,0.97303088]
[1772136636258,1.0200313,2034.9,2033.6,0.24585]
[1772136636259,1.0200313,2034.9,2033.7,0.9930918]
[1772136637862,0.96884514,2034.7,2033.7,0.9930918]
[1772136640561,1.02504781,2034.5,2033.2,0.99113851]
[1772136641061,1.02504781,2034.3,2033.2,0.99113851]
[1772136641661,1.02504781,2034.5,2033.6,0.99109614]
[1772136643063,1.02504781,2034.8,2033.6,0.99109614]
[1772136643362,1.02504781,2034.8,2033.8,0.99403225]
[1772136652872,1.02504781,2034.6,2033.6,1.01492877]
[1772136655171,1.02504781,2034.6,2033.4,1.01410535]
[1772136655374,6.05067842,2034.9,2033.2,1.01410535]
[1772136655375,1.02504781,2034.4,2033.2,1.01410535]
[1772136660375,1.02504781,2034.4,2033.4,1.02191309]
[1772136665279,1.02504781,2034.3,2033.5,1.02353294]
[1772136665979,1.02504781,2034.5,2033.9,1.02350512]
[1772136666776,1.02504781,2034.8,2034.1,1.01817996]
[1772136669481,1.02504781,2034.8,2033.5,0.99405652]
[1772136670683,1.27076781,2034.8,2033.5,0.99405652]
[1772136670884,0.94545371,2034.6,2033.5,0.99405652]
[1772136671379,0.94545371,2034.5,2033.5,0.99405652]
[1772136671579,0.94545371,2034.4,2032.9,10.40993]
[1772136671784,0.94545371,2034.4,2033.2,0.99405652]
[1772136672787,0.94545371,2034.3,2033.2,0.99405652]
[1772136672990,0.94545371,2034.2,2033.2,0.99405652]
[1772136685196,1.62352584,2034.6,2033.1,0.99961807]
[1772136685197,0.94545371,2034.0,2033.1,0.99961807]
[1772136685396,2.56897955,2034.0,2033.1,0.00556155]
[1772136685595,6.23736049,2033.9,2033.1,0.00556155]
[1772136685895,0.94545371,2033.8,2033.1,0.00556155]
[1772136686196,0.94545371,2033.8,2033.1,0.99961807]
[1772136687997,0.94545371,2033.8,2033.2,0.99405652]
[1772136689996,5.29190678,2033.9,2033.2,0.99405652]
[1772136690202,0.94545371,2034.0,2033.4,0.99405652]
[1772136692506,0.94545371,2034.0,2033.2,0.99104724]
[1772136693399,0.94545371,2034.0,2033.1,0.00556155]
[1772136693702,0.94545371,2034.0,2033.1,0.9953859]
[1772136695806,0.94545371,2033.8,2033.1,0.00556155]
[1772136696308,0.94545371,2033.8,2033.1,0.99311188]
[1772136702813,0.94545371,2033.8,2033.1,0.00556155]
[1772136706517,0.94855696,2033.6,2032.7,0.9836061]
[1772136707318,0.94855696,2033.6,2032.7,0.98710472]
[1772136707920,0.94855696,2034.0,2032.7,0.98710472]
[1772136708220,0.94855696,2033.9,2032.7,0.98710472]
[1772136710323,0.99855696,2033.9,2032.7,0.98710472]
[1772136714122,0.94855696,2033.7,2032.7,0.98710472]
[1772136730441,0.94855696,2033.7,2032.0,23.06276273]
[1772136730442,1.0218075,2033.1,2032.4,0.9544098]
[1772136730636,1.0218075,2033.1,2032.3,0.9544098]
[1772136731535,1.0218075,2033.1,2032.3,0.96028799]
[1772136731536,1.0272131,2033.1,2032.3,0.96028799]
[1772136734545,1.0272131,2033.1,2032.3,0.00587819]
[1772136734746,1.0272131,2033.1,2032.3,0.95624676]
[1772136747347,1.0272131,2033.1,2031.8,10.164]
[1772136747348,1.0218075,2032.9,2031.9,0.9486101]
[1772136747753,1.0218075,2032.7,2031.9,0.9486101]
[1772136748455,1.0218075,2032.7,2031.9,0.95413217]
[1772136751358,1.0218075,2032.7,2032.0,0.97281963]
[1772136755158,1.0218075,2033.0,2032.2,0.97646398]
[1772136755963,0.0054056,2033.1,2032.4,2.06040452]
[1772136756157,0.97288662,2033.1,2032.5,0.94424988]
[1772136756356,0.97288662,2033.1,2032.3,1.19025988]
[1772136756555,0.97288662,2033.1,2032.4,0.94424988]
[1772136757560,0.0054056,2033.1,2032.4,0.94424988]
[1772136757754,0.0054056,2033.1,2032.4,2.02849489]
[1772136757958,0.96748102,2033.7,2032.6,0.94424988]
[1772136758357,0.96748102,2033.6,2032.6,0.94424988]
[1772136758857,0.97379424,2033.6,2032.6,0.94424988]
[1772136761866,0.97379424,2033.6,2032.7,0.96183644]
[1772136764165,0.94707463,2033.4,2032.3,0.96183644]
[1772136765366,0.94707463,2033.4,2032.2,1.08424501]
[1772136765367,0.94707463,2033.4,2032.6,0.96183644]
[1772136768465,0.94707463,2033.2,2032.6,0.96183644]
[1772136770276,0.95338785,2033.6,2033.1,0.96183644]
[1772136770571,8.39707463,2033.9,2033.3,1.08390391]
[1772136770771,0.99707463,2033.9,2033.4,0.96183644]
[1772136771674,1.00254479,2033.9,2033.4,0.96814505]
[1772136772065,0.94707463,2034.1,2033.6,0.96183644]
[1772136772268,0.94707463,2034.5,2033.8,0.96183644]
[1772136772567,0.94707463,2034.5,2033.9,0.96183644]
[1772136773170,0.95208924,2034.5,2033.9,0.96183644]
[1772136776072,0.00501461,2034.5,2033.9,0.96183644]
[1772136776272,0.94707463,2034.8,2033.9,0.96183644]
[1772136777174,0.95160837,2034.8,2033.9,0.96183644]
[1772136781075,0.00453374,2034.8,2034.2,0.96183644]
[1772136781779,0.94707463,2035.1,2034.2,0.96183644]
[1772136782176,0.94707463,2035.5,2034.4,0.96183644]
[1772136782785,0.95259534,2035.5,2034.4,0.96183644]
[1772136785893,0.95259534,2035.5,2034.6,0.96183644]
[1772136790194,0.95259534,2035.5,2034.2,0.95534744]
[1772136790396,0.94840256,2035.3,2034.2,0.95534744]
[1772136790598,0.94840256,2035.2,2034.2,0.95534744]
[1772136790799,0.94840256,2035.1,2033.8,0.95534744]
[1772136791097,0.94840256,2034.9,2033.8,0.95534744]
[1772136791400,0.94840256,2034.7,2033.8,0.95534744]
[1772136791594,0.94840256,2034.7,2033.5,0.95534744]
[1772136791899,0.94840256,2034.6,2033.5,0.95534744]
[1772136798310,0.94840256,2034.6,2033.7,0.95534744]
[1772136800906,0.94840256,2034.6,2033.4,0.00630861]
[1772136800907,0.94840256,2034.8,2033.9,0.95534744]
[1772136802105,0.94840256,2035.2,2034.1,0.95534744]
[1772136802308,0.94840256,2035.2,2034.3,0.95534744]
[1772136807113,0.94840256,2035.2,2034.1,0.95534744]
[1772136807412,0.24566,2035.3,2033.4,6.05505861]
[1772136807413,0.94840256,2035.1,2034.3,0.95534744]
[1772136819220,0.94840256,2035.1,2034.5,0.96689088]
[1772136821815,1.08185811,2035.4,2035.0,1.00299044]
[1772136821816,0.91353136,2035.4,2035.0,1.00299044]
[1772136822120,0.91353136,2035.4,2035.0,0.0062223]
[1772136823520,0.91353136,2035.4,2035.0,1.00921274]
[1772136824520,0.91353136,2035.4,2035.0,0.0062223]
[1772136825222,0.91353136,2035.4,2035.0,1.00921274]
[1772136825614,0.91353136,2035.4,2035.0,0.0062223]
[1772136828922,0.91353136,2035.4,2034.1,6.366]
[1772136828923,0.91353136,2035.3,2034.3,1.00299044]
[1772136830021,0.91353136,2035.3,2034.3,1.00709956]
[1772136836728,0.91353136,2035.3,2034.4,0.24576]
[1772136836927,0.91353136,2035.3,2034.7,1.00299044]
[1772136840429,0.91905207,2035.5,2034.9,1.00299044]
[1772136841530,0.91905207,2035.5,2034.4,1.24875044]
[1772136849634,0.96054203,2034.7,2034.3,0.00410912]
[1772136849834,0.96054203,2034.7,2034.0,1.24467899]
[1772136850835,0.96054203,2034.7,2034.1,0.99887899]
[1772136851133,0.00552071,2035.5,2034.5,0.99887899]
[1772136851134,0.96054203,2035.1,2034.5,0.99887899]
[1772136851534,0.96054203,2035.0,2034.1,0.99887899]
[1772136855937,0.96054203,2034.8,2034.1,0.99887899]
[1772136856136,0.96054203,2034.8,2034.0,0.25199897]
[1772136856339,0.96054203,2034.8,2034.0,1.25087796]
[1772136856637,0.96054203,2034.8,2034.1,0.99887899]
[1772136860737,0.96054203,2035.4,2034.3,0.99887899]
[1772136861238,0.96054203,2035.4,2034.5,0.99887899]
[1772136862634,0.96054203,2035.4,2034.7,0.99887899]
[1772136863934,0.96054203,2035.4,2034.6,0.99887899]
[1772136864238,0.96054203,2035.2,2034.3,0.99887899]
[1772136867339,0.96054203,2034.9,2034.0,0.00619897]
[1772136869738,0.96054203,2034.9,2034.0,1.00507796]
[1772136885454,0.97763582,2034.7,2034.0,0.00619897]
[1772136886148,0.97763582,2034.4,2033.5,0.93863291]
[1772136887157,0.97763582,2034.4,2033.5,0.94379749]
[1772136887355,0.97763582,2034.3,2033.5,0.94379749]
[1772136887555,0.97763582,2034.3,2033.7,0.93863291]
[1772136888550,0.97763582,2034.3,2033.5,0.00516458]
[1772136888857,0.97763582,2034.1,2033.6,0.93863291]
[1772136889456,0.97763582,2034.1,2033.5,0.00516458]
[1772136890062,0.97763582,2033.9,2033.5,0.94379749]
[1772136890262,0.97763582,2033.7,2033.1,0.93863291]
[1772136891359,0.97763582,2033.7,2033.1,0.94301906]
[1772136891860,0.97763582,2033.6,2033.1,0.94301906]
[1772136892055,0.97763582,2033.4,2032.8,24.39342518]
[1772136892251,0.97763582,2033.8,2033.2,0.93863291]
[1772136892961,0.97763582,2033.8,2033.2,0.94305103]
[1772136893260,0.97763582,2033.8,2033.3,0.93863291]
[1772136893456,0.97763582,2033.8,2033.2,1.08729574]
[1772136893457,0.97763582,2033.8,2033.2,0.00441812]
[1772136893660,0.97763582,2033.6,2033.2,0.00441812]
[1772136894963,0.97763582,2033.6,2033.2,0.94305103]
[1772136896265,0.97763582,2033.6,2033.2,0.00441812]
[1772136897166,0.97763582,2033.6,2032.9,0.93863291]
[1772136897362,0.97763582,2033.6,2032.8,1.08287762]
[1772136897664,0.97763582,2033.5,2032.7,0.93863291]
[1772136898066,0.97763582,2033.5,2032.7,0.94377902]
[1772136898265,0.97763582,2033.5,2032.8,2.02151053]
[1772136899961,0.97763582,2033.6,2032.8,0.93863291]
[1772136900167,0.97763582,2033.6,2033.0,0.93863291]
[1772136900366,0.97763582,2033.6,2032.8,0.93863291]
[1772136900561,0.96733952,2033.6,2033.2,0.93863291]
[1772136900864,0.96733952,2033.6,2033.1,1.08287762]
[1772136900865,0.97763582,2033.8,2033.4,0.93863291]
[1772136901368,0.97763582,2033.8,2033.3,1.08287762]
[1772136901566,0.97763582,2033.8,2033.3,0.93863291]
[1772136901966,0.97763582,2033.8,2033.4,0.93863291]
[1772136902570,0.98323826,2033.9,2033.6,0.93863291]
[1772136902771,0.97763582,2034.1,2033.6,0.93863291]
[1772136903773,0.98192066,2034.1,2033.6,0.93863291]
[1772136906981,0.97763582,2034.5,2034.0,0.93863291]
[1772136907872,0.98188824,2034.5,2034.0,0.93863291]
[1772136909077,0.00425242,2034.5,2034.2,0.93863291]
[1772136909271,0.97763582,2034.8,2034.2,0.94287262]
[1772136910379,0.98165426,2034.8,2034.2,0.94287262]
[1772136911478,0.00401844,2034.8,2034.4,0.93117602]
[1772136912076,0.92242926,2034.8,2034.4,0.93117602]
[1772136913678,0.00401844,2034.8,2034.4,0.93117602]
[1772136913883,0.91841082,2035.2,2034.7,0.93117602]
[1772136914284,5.20939921,2035.5,2034.9,0.93117602]
[1772136914582,0.91841082,2035.5,2034.9,0.93117602]
[1772136914785,0.92204522,2035.5,2034.9,0.93117602]
[1772136915487,0.0036344,2035.5,2034.9,0.93117602]
[1772136918188,0.0036344,2035.5,2034.9,1.17686602]
[1772136918389,0.91841082,2036.1,2035.0,0.93117602]
[1772136918981,0.91841082,2036.0,2035.0,0.93117602]
[1772136919289,0.9226908,2036.0,2035.0,0.93117602]
[1772136920489,0.9226908,2036.0,2035.2,0.93117602]
[1772136921084,0.00427998,2036.0,2035.2,0.93117602]
[1772136922290,0.9226908,2036.0,2035.2,0.93117602]
[1772136925093,0.9226908,2036.0,2035.1,0.93117602]
[1772136926194,0.9226908,2036.0,2035.0,0.93117602]
[1772136926497,0.91841082,2035.8,2035.0,0.93117602]
[1772136927498,0.91841082,2035.6,2034.4,0.93117602]
[1772136927897,0.91841082,2035.1,2034.2,0.93541573]
[1772136928102,6.12497203,2035.5,2034.4,0.93117602]
[1772136928298,0.91841082,2035.5,2034.6,0.93117602]
[1772136934205,0.91841082,2035.5,2034.5,0.24575]
[1772136934206,6.59582823,2035.4,2034.4,0.93117602]
[1772136934409,0.91841082,2035.3,2034.4,0.93117602]
[1772136936315,0.91841082,2035.3,2034.3,0.85751452]
[1772136936514,1.86791216,2035.5,2034.2,0.00423971]
[1772136936515,0.86663872,2035.1,2034.2,0.00423971]
[1772136936714,0.86663872,2034.8,2033.7,0.85751452]
[1772136937605,0.86663872,2034.8,2033.7,0.86148814]
[1772136937810,0.86663872,2035.0,2033.9,0.85751452]
[1772136938114,0.86663872,2035.0,2034.1,0.85751452]
[1772136941618,0.86663872,2035.0,2034.0,0.24581]
[1772136941619,0.8521553,2035.5,2034.3,0.92172339]
[1772136950323,0.8521553,2035.5,2034.5,0.92172339]
[1772136951919,0.8521553,2035.3,2034.1,0.92172339]
[1772136952120,0.8521553,2035.3,2034.3,0.92172339]
[1772136952325,0.8521553,2035.5,2034.3,0.92172339]
[1772136953020,0.8521553,2035.5,2034.5,0.92172339]
[1772136954325,0.8521553,2035.9,2034.7,0.92172339]
[1772136960231,0.8521553,2035.9,2035.1,0.24567]
[1772136960430,0.8521553,2035.9,2035.2,0.92172339]
[1772136960730,0.8521553,2035.9,2035.2,0.92744223]
[1772136961732,0.8521553,2035.9,2035.2,0.00571884]
[1772136962134,0.8521553,2035.9,2035.2,0.92744223]
[1772136964335,0.8521553,2035.9,2035.2,0.00571884]
[1772136965233,0.8521553,2035.9,2035.2,0.92744223]
[1772136966536,0.8521553,2036.9,2035.6,0.92172339]
[1772136967534,0.8575761,2036.9,2035.6,0.92172339]
[1772136968730,0.8575761,2036.9,2035.8,0.92172339]
[1772136970235,0.0054208,2036.9,2036.0,0.8768239]
[1772136970436,0.82158921,2037.8,2036.2,0.8768239]
[1772136970833,0.82158921,2037.6,2036.2,0.8768239]
[1772136971236,0.82158921,2037.6,2036.7,0.24548]
[1772136971536,0.82725347,2037.6,2036.8,0.8768239]
[1772136972735,0.00566426,2037.6,2036.8,0.8768239]
[1772136973435,0.82158921,2037.9,2036.8,0.8768239]
[1772136974234,0.82158921,2037.9,2037.0,0.8768239]
[1772136974434,0.82769825,2037.9,2037.0,0.8768239]
[1772136974840,0.00610904,2037.9,2037.0,0.8768239]
[1772136975531,0.82769825,2037.9,2036.8,0.8768239]
[1772136976740,0.82769825,2037.9,2036.9,0.8768239]
[1772136977442,0.00610904,2037.9,2037.1,0.8768239]
[1772136977737,0.87769825,2037.9,2037.1,0.8768239]
[1772136978139,0.05610904,2037.9,2037.1,0.8768239]
[1772136978337,0.87769825,2037.9,2037.1,0.8768239]
[1772136979537,0.87769825,2037.9,2036.8,0.8768239]
[1772136982742,0.87769825,2037.9,2036.7,0.00601252]
[1772136982743,0.82158921,2037.7,2036.7,0.88283642]
[1772136983942,0.87769825,2037.9,2036.9,0.8768239]
[1772136985848,0.05610904,2037.9,2037.1,0.8768239]
[1772136986050,0.05610904,2037.9,2036.8,6.432]
[1772136986051,0.82158921,2038.3,2037.3,0.8768239]
[1772136986949,0.82616606,2038.3,2037.3,0.8768239]
[1772136989049,0.82616606,2038.3,2036.8,0.8768239]
[1772136989351,0.82158921,2037.9,2036.8,0.8768239]
[1772136990050,0.82158921,2037.9,2036.7,0.00601252]
[1772136990256,0.82158921,2037.7,2035.8,0.8768239]
[1772136990457,0.82158921,2037.4,2035.8,0.8768239]
[1772136990758,0.82158921,2037.2,2035.8,0.8768239]
[1772136991153,0.82158921,2037.2,2035.8,0.88210012]
[1772136991960,0.82158921,2037.0,2035.8,0.88210012]
[1772136994257,0.82158921,2037.0,2035.8,7.31410012]
[1772136994456,0.82158921,2037.0,2035.9,0.8768239]
[1772136996164,0.81281789,2036.9,2035.9,0.8768239]
[1772136997878,0.81281789,2036.9,2035.8,0.00527622]
[1772136998166,0.81281789,2036.9,2035.8,0.82942741]
[1772137000573,0.83549487,2036.7,2035.4,0.80065718]
[1772137001078,0.83549487,2036.5,2035.4,0.80065718]
[1772137001269,0.83549487,2036.3,2035.2,0.80065718]
[1772137001573,0.84137625,2036.3,2035.2,0.80667815]
[1772137001768,0.83549487,2036.1,2035.2,0.00602097]
[1772137001969,0.83549487,2036.1,2034.2,0.24578]
[1772137001970,0.83549487,2036.1,2035.1,0.80065718]
[1772137002174,0.83549487,2035.9,2035.1,0.80065718]
[1772137002374,0.83549487,2035.9,2034.3,0.80065718]
[1772137002677,0.83549487,2035.9,2034.5,0.80065718]
[1772137002979,0.83549487,2035.9,2034.5,0.80519756]
[1772137003781,0.83549487,2035.9,2034.7,0.80065718]
[1772137006577,0.83549487,2035.9,2034.9,0.80065718]
[1772137011180,0.83549487,2035.9,2034.7,1.62146368]
[1772137011181,0.83549487,2035.9,2034.7,0.80065718]
[1772137013984,0.83549487,2035.9,2034.8,0.80065718]
[1772137015883,0.83549487,2036.2,2035.2,0.80065718]
[1772137018895,0.83549487,2036.2,2035.4,0.80065718]
[1772137019187,0.83549487,2036.2,2034.6,6.04517]
[1772137019188,0.83549487,2035.6,2034.4,0.24576]
[1772137019392,0.83549487,2035.6,2034.5,0.80519756]
[1772137021994,0.83549487,2035.6,2034.7,0.80065718]
[1772137024497,0.83549487,2035.4,2034.5,0.80519756]
[1772137028495,0.83549487,2035.4,2034.5,0.00454038]
[1772137028697,0.83549487,2035.4,2034.5,0.80519756]
[1772137029294,0.83549487,2035.4,2034.6,0.80065718]